[Event "Late-Titled-Tuesday-Blitz-February-27-2024"]
[Site "Chess.com"]
[Date "2024.02.27"]
[Round "2"]
[White "JackRodgers"]
[Black "IngOscarArdila"]
[Result "1-0"]
[WhiteElo "2513"]
[BlackElo "2293"]
[TimeControl "180+1"]
[EndTime "14:19:47 PST"]
[Termination "JackRodgers won on time"]

1. d4 {[%clk 0:03:00.9]} 1... Nf6 {[%clk 0:03:00.3]} 2. Bg5 {[%clk 0:02:59.6]}
2... e6 {[%clk 0:03:00.4]} 3. e4 {[%clk 0:02:59.5]} 3... Be7 {[%clk 0:03:00.7]}
4. e5 {[%clk 0:02:59.4]} 4... Nd5 {[%clk 0:03:00.6]} 5. Bxe7 {[%clk 0:03:00.3]}
5... Qxe7 {[%clk 0:03:01]} 6. c4 {[%clk 0:02:59.1]} 6... Nb6 {[%clk 0:03:00.6]}
7. Nc3 {[%clk 0:02:55.7]} 7... Qb4 {[%clk 0:02:58.7]} 8. Qb3 {[%clk 0:02:55.3]}
8... a5 {[%clk 0:02:54.7]} 9. Nf3 {[%clk 0:02:52.2]} 9... O-O {[%clk 0:02:52.2]}
10. Bd3 {[%clk 0:02:45.8]} 10... Nc6 {[%clk 0:02:50.6]} 11. O-O {[%clk 0:02:45]}
11... Qxb3 {[%clk 0:02:45.1]} 12. axb3 {[%clk 0:02:44.7]} 12... Nb4 {[%clk
0:02:45.1]} 13. Be4 {[%clk 0:02:43.1]} 13... d5 {[%clk 0:02:41]} 14. exd6 {[%clk
0:02:37.5]} 14... cxd6 {[%clk 0:02:40.8]} 15. Nb5 {[%clk 0:02:10.5]} 15... d5
{[%clk 0:02:37.2]} 16. cxd5 {[%clk 0:01:49.3]} 16... N6xd5 {[%clk 0:02:34.9]}
17. Ne5 {[%clk 0:01:45.9]} 17... Rd8 {[%clk 0:02:26.8]} 18. Rfd1 {[%clk
0:01:44.4]} 18... Bd7 {[%clk 0:02:25.3]} 19. Nc3 {[%clk 0:01:41.2]} 19... Be8
{[%clk 0:02:21.1]} 20. Nc4 {[%clk 0:01:40.5]} 20... Nc6 {[%clk 0:01:28.3]} 21.
Bxd5 {[%clk 0:01:35.2]} 21... exd5 {[%clk 0:01:28.2]} 22. Nb6 {[%clk 0:01:35.7]}
22... Ra6 {[%clk 0:01:26.9]} 23. Nbxd5 {[%clk 0:01:35.7]} 23... Kf8 {[%clk
0:01:13.4]} 24. Nc7 {[%clk 0:01:33.7]} 24... Rb6 {[%clk 0:01:07.6]} 25. d5
{[%clk 0:01:24.2]} 25... Ne5 {[%clk 0:00:56.4]} 26. Nxe8 {[%clk 0:01:12.2]}
26... Rxe8 {[%clk 0:00:45.8]} 27. Rxa5 {[%clk 0:01:12.4]} 27... Rxb3 {[%clk
0:00:44.1]} 28. d6 {[%clk 0:01:12.8]} 28... Nd7 {[%clk 0:00:43.7]} 29. h3 {[%clk
0:00:47.8]} 29... Rxb2 {[%clk 0:00:41.9]} 30. Nd5 {[%clk 0:00:48.1]} 30... f6
{[%clk 0:00:29.6]} 31. Ne7 {[%clk 0:00:39.6]} 31... Kf7 {[%clk 0:00:24.4]} 32.
Ra4 {[%clk 0:00:37.7]} 32... g6 {[%clk 0:00:20.5]} 33. Rc4 {[%clk 0:00:37.3]}
33... Rd8 {[%clk 0:00:16.4]} 34. Rc7 {[%clk 0:00:37.3]} 34... Ke6 {[%clk
0:00:16.1]} 35. Rc3 {[%clk 0:00:36.2]} 35... Re2 {[%clk 0:00:15]} 36. Kf1 {[%clk
0:00:35.1]} 36... Re5 {[%clk 0:00:14.3]} 37. Rc7 {[%clk 0:00:32.7]} 37... Rb8
{[%clk 0:00:12]} 38. f4 {[%clk 0:00:25.8]} 38... Re4 {[%clk 0:00:11.5]} 39. g3
{[%clk 0:00:26.2]} 39... f5 {[%clk 0:00:11.8]} 40. Kf2 {[%clk 0:00:17.1]} 40...
Rb4 {[%clk 0:00:09.7]} 41. Rc2 {[%clk 0:00:16.5]} 41... Re4 {[%clk 0:00:09.6]}
42. Kf3 {[%clk 0:00:16.7]} 42... Rb4 {[%clk 0:00:08.6]} 43. Re2+ {[%clk
0:00:16.5]} 43... Re4 {[%clk 0:00:08.9]} 44. Rxe4+ {[%clk 0:00:16.6]} 44...
fxe4+ {[%clk 0:00:09.8]} 45. Kxe4 {[%clk 0:00:17.5]} 45... Nf6+ {[%clk
0:00:08.3]} 46. Kf3 {[%clk 0:00:18]} 46... b5 {[%clk 0:00:08.7]} 47. Nc6 {[%clk
0:00:17.4]} 47... Rc8 {[%clk 0:00:07.8]} 48. Ne5 {[%clk 0:00:17.4]} 48... Rc3+
{[%clk 0:00:07.7]} 49. Kg2 {[%clk 0:00:16.7]} 49... Nd7 {[%clk 0:00:08.3]} 50.
Nc6 {[%clk 0:00:13.2]} 50... Rxc6 {[%clk 0:00:07.5]} 51. Rb1 {[%clk 0:00:12.3]}
51... Kxd6 {[%clk 0:00:06.8]} 52. Rxb5 {[%clk 0:00:12.5]} 52... Rc2+ {[%clk
0:00:07.7]} 53. Kf3 {[%clk 0:00:12.9]} 53... Kc6 {[%clk 0:00:08]} 54. Ra5 {[%clk
0:00:12.6]} 54... Rb2 {[%clk 0:00:05.6]} 55. Ra6+ {[%clk 0:00:12.2]} 55... Rb6
{[%clk 0:00:05.4]} 56. Ra7 {[%clk 0:00:12.7]} 56... Rb3+ {[%clk 0:00:06.3]} 57.
Kg4 {[%clk 0:00:12.2]} 57... Rb5 {[%clk 0:00:05.7]} 58. Ra8 {[%clk 0:00:11.3]}
58... h5+ {[%clk 0:00:05.4]} 59. Kh4 {[%clk 0:00:11.7]} 59... Kd6 {[%clk
0:00:04.4]} 60. Rg8 {[%clk 0:00:12.1]} 60... Ke7 {[%clk 0:00:03]} 61. Rxg6
{[%clk 0:00:11.9]} 61... Nf6 {[%clk 0:00:03.3]} 62. Rg7+ {[%clk 0:00:10.2]}
62... Kf8 {[%clk 0:00:03.3]} 63. Ra7 {[%clk 0:00:10.7]} 63... Rd5 {[%clk
0:00:02.7]} 64. g4 {[%clk 0:00:10.7]} 64... hxg4 {[%clk 0:00:02.8]} 65. hxg4
{[%clk 0:00:11.6]} 65... Rd4 {[%clk 0:00:03.6]} 66. Kg5 {[%clk 0:00:10.4]} 66...
Nd5 {[%clk 0:00:03.8]} 67. f5 {[%clk 0:00:09.1]} 67... Ne3 {[%clk 0:00:03.6]}
68. Kg6 {[%clk 0:00:07.7]} 68... Rxg4+ {[%clk 0:00:02.7]} 69. Kf6 {[%clk
0:00:08.1]} 69... Nd5+ {[%clk 0:00:03]} 70. Ke6 {[%clk 0:00:08.7]} 70... Nf4+
{[%clk 0:00:03]} 71. Ke5 {[%clk 0:00:08.8]} 71... Nd3+ {[%clk 0:00:03.1]} 72.
Kf6 {[%clk 0:00:09.1]} 72... Ke8 {[%clk 0:00:02.9]} 73. Ra8+ {[%clk 0:00:07.4]}
73... Kd7 {[%clk 0:00:03.2]} 74. Ra7+ {[%clk 0:00:07.9]} 74... Kd6 {[%clk
0:00:03.3]} 75. Ra8 {[%clk 0:00:08.6]} 75... Rf4 {[%clk 0:00:03.3]} 76. Rd8+
{[%clk 0:00:08.9]} 76... Kc7 {[%clk 0:00:03.4]} 77. Rxd3 {[%clk 0:00:09.8]}
77... Rf1 {[%clk 0:00:03.3]} 78. Ke6 {[%clk 0:00:09.6]} 78... Re1+ {[%clk
0:00:03.1]} 79. Kf7 {[%clk 0:00:10.2]} 79... Rf1 {[%clk 0:00:04]} 80. f6 {[%clk
0:00:10.6]} 80... Kc8 {[%clk 0:00:04.1]} 81. Ke7 {[%clk 0:00:10.9]} 81... Re1+
{[%clk 0:00:03.4]} 82. Kf8 {[%clk 0:00:11.5]} 82... Rf1 {[%clk 0:00:04.3]} 83.
f7 {[%clk 0:00:12]} 83... Kc7 {[%clk 0:00:04.8]} 84. Rg3 {[%clk 0:00:12.1]}
84... Kd7 {[%clk 0:00:04.5]} 85. Kg8 {[%clk 0:00:11.9]} 85... Ke7 {[%clk
0:00:05]} 86. Re3+ {[%clk 0:00:12.5]} 86... Kd8 {[%clk 0:00:04.7]} 87. f8=Q+
{[%clk 0:00:12.9]} 1-0

[Event "Late-Titled-Tuesday-Blitz-February-27-2024"]
[Site "Chess.com"]
[Date "2024.02.27"]
[Round "2"]
[White "arenal72"]
[Black "vugarrasulov"]
[Result "1/2-1/2"]
[WhiteElo "2618"]
[BlackElo "2991"]
[TimeControl "180+1"]
[EndTime "14:19:50 PST"]
[Termination "Game drawn by repetition"]

1. Nf3 {[%clk 0:03:00.9]} 1... Nf6 {[%clk 0:02:59.3]} 2. g3 {[%clk 0:03:00.7]}
2... b5 {[%clk 0:02:58.5]} 3. Bg2 {[%clk 0:02:56.8]} 3... Bb7 {[%clk 0:02:58.8]}
4. O-O {[%clk 0:02:56.7]} 4... e6 {[%clk 0:02:58.6]} 5. d3 {[%clk 0:02:56.8]}
5... d5 {[%clk 0:02:58]} 6. Nbd2 {[%clk 0:02:52.9]} 6... Nbd7 {[%clk 0:02:54.2]}
7. c3 {[%clk 0:02:50.2]} 7... c5 {[%clk 0:02:49.3]} 8. Qc2 {[%clk 0:02:45.9]}
8... Be7 {[%clk 0:02:22.5]} 9. e4 {[%clk 0:02:45.5]} 9... Rc8 {[%clk 0:02:18.2]}
10. Re1 {[%clk 0:02:37.4]} 10... O-O {[%clk 0:02:05.6]} 11. e5 {[%clk 0:02:31]}
11... Ne8 {[%clk 0:02:06]} 12. h4 {[%clk 0:02:25.8]} 12... Nb6 {[%clk
0:01:54.3]} 13. b3 {[%clk 0:02:14.3]} 13... d4 {[%clk 0:01:53.2]} 14. c4 {[%clk
0:02:10.6]} 14... bxc4 {[%clk 0:01:53.7]} 15. bxc4 {[%clk 0:02:08.9]} 15... Bc6
{[%clk 0:01:46.3]} 16. Ne4 {[%clk 0:02:06.5]} 16... Bxe4 {[%clk 0:01:40.5]} 17.
Rxe4 {[%clk 0:02:03.1]} 17... Qd7 {[%clk 0:01:41.4]} 18. Bg5 {[%clk 0:01:59.6]}
18... h6 {[%clk 0:01:25.5]} 19. Bxe7 {[%clk 0:01:54.6]} 19... Qxe7 {[%clk
0:01:26.4]} 20. Qd2 {[%clk 0:01:52.3]} 20... Na4 {[%clk 0:01:24.4]} 21. Rg4
{[%clk 0:01:46.7]} 21... Kh8 {[%clk 0:01:18.1]} 22. Rb1 {[%clk 0:01:30.3]} 22...
Nc3 {[%clk 0:01:15.6]} 23. Rb3 {[%clk 0:01:28.5]} 23... Nc7 {[%clk 0:01:00.5]}
24. Nh2 {[%clk 0:01:03.6]} 24... Rb8 {[%clk 0:00:56.2]} 25. Rf4 {[%clk
0:00:52.3]} 25... Rxb3 {[%clk 0:00:51.1]} 26. axb3 {[%clk 0:00:51]} 26... f5
{[%clk 0:00:42.3]} 27. exf6 {[%clk 0:00:48.7]} 27... Rxf6 {[%clk 0:00:42.9]} 28.
Ng4 {[%clk 0:00:45.6]} 28... Rxf4 {[%clk 0:00:43.1]} 29. gxf4 {[%clk 0:00:42.6]}
29... Qxh4 {[%clk 0:00:40.6]} 30. Ne5 {[%clk 0:00:42.5]} 30... Kg8 {[%clk
0:00:40.5]} 31. Kf1 {[%clk 0:00:39.2]} 31... Ne8 {[%clk 0:00:37.3]} 32. Nd7
{[%clk 0:00:31.7]} 32... Qh5 {[%clk 0:00:29.7]} 33. Qe1 {[%clk 0:00:24.6]} 33...
Qf5 {[%clk 0:00:24.8]} 34. Qe5 {[%clk 0:00:19.6]} 34... Qxd3+ {[%clk 0:00:18.6]}
35. Kg1 {[%clk 0:00:19.9]} 35... Qf5 {[%clk 0:00:18.3]} 36. Qb8 {[%clk
0:00:15.8]} 36... Qh5 {[%clk 0:00:06.3]} 37. Nxc5 {[%clk 0:00:12.3]} 37... Kh7
{[%clk 0:00:05.4]} 38. Ne4 {[%clk 0:00:10.3]} 38... Nxe4 {[%clk 0:00:05.3]} 39.
Bxe4+ {[%clk 0:00:10]} 39... Kg8 {[%clk 0:00:06]} 40. Qc8 {[%clk 0:00:08.3]}
40... Qg4+ {[%clk 0:00:05.1]} 41. Bg2 {[%clk 0:00:07.2]} 41... Kf7 {[%clk
0:00:05.2]} 42. Qd7+ {[%clk 0:00:07.2]} 42... Kf8 {[%clk 0:00:05.9]} 43. Qxd4
{[%clk 0:00:07.3]} 43... a5 {[%clk 0:00:05.8]} 44. c5 {[%clk 0:00:07.5]} 44...
Qf5 {[%clk 0:00:04]} 45. c6 {[%clk 0:00:07.1]} 45... Ke7 {[%clk 0:00:04.4]} 46.
Qd7+ {[%clk 0:00:06.4]} 46... Kf8 {[%clk 0:00:05.2]} 47. c7 {[%clk 0:00:06.6]}
47... Nxc7 {[%clk 0:00:04.6]} 48. Qxc7 {[%clk 0:00:06.2]} 48... Qb1+ {[%clk
0:00:05.2]} 49. Kh2 {[%clk 0:00:06.3]} 49... Qxb3 {[%clk 0:00:05.7]} 50. Qc5+
{[%clk 0:00:06.3]} 50... Kf7 {[%clk 0:00:05.8]} 51. Qxa5 {[%clk 0:00:06.8]}
51... Qc4 {[%clk 0:00:06.4]} 52. Qa7+ {[%clk 0:00:06.8]} 52... Kf6 {[%clk
0:00:06.5]} 53. Qe3 {[%clk 0:00:07.3]} 53... Qb5 {[%clk 0:00:06.3]} 54. Bf3
{[%clk 0:00:06.2]} 54... Qf5 {[%clk 0:00:05.6]} 55. Qd4+ {[%clk 0:00:05.9]}
55... Kf7 {[%clk 0:00:06.1]} 56. Qd7+ {[%clk 0:00:05.6]} 56... Kf6 {[%clk
0:00:05.8]} 57. Qd4+ {[%clk 0:00:05.9]} 57... Kf7 {[%clk 0:00:06.3]} 58. Qe5
{[%clk 0:00:06.5]} 58... Qd3 {[%clk 0:00:05.1]} 59. Bh5+ {[%clk 0:00:06.4]}
59... g6 {[%clk 0:00:05.3]} 60. Bg4 {[%clk 0:00:06.7]} 60... Qc4 {[%clk
0:00:04.3]} 61. Kg3 {[%clk 0:00:05.4]} 61... h5 {[%clk 0:00:04.8]} 62. Bf3
{[%clk 0:00:05.3]} 62... Qc1 {[%clk 0:00:04.2]} 63. Bg2 {[%clk 0:00:03.7]} 63...
Qa3+ {[%clk 0:00:03.6]} 64. Qe3 {[%clk 0:00:03.7]} 64... Qd6 {[%clk 0:00:03.5]}
65. Qa7+ {[%clk 0:00:03.9]} 65... Kf6 {[%clk 0:00:03.4]} 66. Qa1+ {[%clk
0:00:04.6]} 66... Kf7 {[%clk 0:00:03.6]} 67. Qh8 {[%clk 0:00:05.4]} 67... Qd3+
{[%clk 0:00:03.8]} 68. Kh2 {[%clk 0:00:04.5]} 68... Qd6 {[%clk 0:00:04.2]} 69.
Qh7+ {[%clk 0:00:04.7]} 69... Kf6 {[%clk 0:00:04.8]} 70. Qh6 {[%clk 0:00:04.7]}
70... Qd4 {[%clk 0:00:04.9]} 71. Qg5+ {[%clk 0:00:04.9]} 71... Kf7 {[%clk
0:00:05.3]} 72. Bh3 {[%clk 0:00:05]} 72... Qxf2+ {[%clk 0:00:05.5]} 73. Bg2
{[%clk 0:00:05.6]} 73... Qd4 {[%clk 0:00:05.1]} 74. Bf3 {[%clk 0:00:04.6]} 74...
Qb2+ {[%clk 0:00:03.5]} 75. Kg3 {[%clk 0:00:04.6]} 75... Qc1 {[%clk 0:00:03.5]}
76. Qa5 {[%clk 0:00:03.3]} 76... Qg1+ {[%clk 0:00:03.1]} 77. Kh3 {[%clk
0:00:03.7]} 77... Qe3 {[%clk 0:00:03.2]} 78. Qc7+ {[%clk 0:00:03.3]} 78... Kf6
{[%clk 0:00:03.8]} 79. Qd8+ {[%clk 0:00:03.7]} 79... Kf7 {[%clk 0:00:03.9]} 80.
Qd7+ {[%clk 0:00:04.3]} 80... Kf8 {[%clk 0:00:03.5]} 81. Qd8+ {[%clk 0:00:04.8]}
81... Kf7 {[%clk 0:00:03.8]} 82. Qd7+ {[%clk 0:00:05.4]} 82... Kf6 {[%clk
0:00:04.3]} 83. Qd8+ {[%clk 0:00:05.8]} 83... Kg7 {[%clk 0:00:04.5]} 84. Qe7+
{[%clk 0:00:05.6]} 84... Kg8 {[%clk 0:00:05.2]} 85. Qe8+ {[%clk 0:00:05.3]}
85... Kg7 {[%clk 0:00:05.7]} 86. Qe7+ {[%clk 0:00:05.8]} 86... Kh6 {[%clk
0:00:05.9]} 87. Qg5+ {[%clk 0:00:05.8]} 87... Kh7 {[%clk 0:00:06.3]} 88. Qe7+
{[%clk 0:00:05.9]} 88... Kg8 {[%clk 0:00:06.8]} 89. Kg3 {[%clk 0:00:05.9]} 89...
Qe1+ {[%clk 0:00:06.3]} 90. Kg2 {[%clk 0:00:05.8]} 90... Qd2+ {[%clk 0:00:06.8]}
91. Kg3 {[%clk 0:00:06.3]} 91... Qe1+ {[%clk 0:00:07.1]} 92. Kg2 {[%clk
0:00:06.5]} 92... Qe3 {[%clk 0:00:06.6]} 93. Qf6 {[%clk 0:00:05.6]} 93... Kh7
{[%clk 0:00:05.6]} 94. Qf7+ {[%clk 0:00:05.4]} 94... Kh6 {[%clk 0:00:06.2]} 95.
Qf8+ {[%clk 0:00:05.7]} 95... Kh7 {[%clk 0:00:06.6]} 96. Qf7+ {[%clk 0:00:06.1]}
96... Kh6 {[%clk 0:00:07.1]} 97. Qf8+ {[%clk 0:00:06.5]} 97... Kh7 {[%clk
0:00:07.5]} 98. Qf7+ {[%clk 0:00:07]} 1/2-1/2

[Event "Late-Titled-Tuesday-Blitz-February-27-2024"]
[Site "Chess.com"]
[Date "2024.02.27"]
[Round "2"]
[White "Felix-Rose"]
[Black "ural58"]
[Result "0-1"]
[WhiteElo "2262"]
[BlackElo "2507"]
[TimeControl "180+1"]
[EndTime "14:19:52 PST"]
[Termination "ural58 won on time"]

1. e4 {[%clk 0:02:59.7]} 1... d5 {[%clk 0:02:47.5]} 2. exd5 {[%clk 0:02:59.7]}
2... Qxd5 {[%clk 0:02:48.1]} 3. Nc3 {[%clk 0:02:59.9]} 3... Qa5 {[%clk
0:02:48.5]} 4. Bc4 {[%clk 0:02:59.1]} 4... Nf6 {[%clk 0:02:48.9]} 5. d3 {[%clk
0:02:57.9]} 5... Bg4 {[%clk 0:02:48.5]} 6. f3 {[%clk 0:02:57.3]} 6... Be6 {[%clk
0:02:48.5]} 7. Bd2 {[%clk 0:02:57.1]} 7... Bxc4 {[%clk 0:02:47.5]} 8. dxc4
{[%clk 0:02:57.4]} 8... Qc5 {[%clk 0:02:47.5]} 9. Qe2 {[%clk 0:02:57]} 9... Nc6
{[%clk 0:02:45]} 10. O-O-O {[%clk 0:02:47]} 10... Nd4 {[%clk 0:02:42.3]} 11. Qf1
{[%clk 0:02:38.6]} 11... O-O-O {[%clk 0:02:42.1]} 12. Kb1 {[%clk 0:02:27]} 12...
Qf5 {[%clk 0:02:38.7]} 13. Qd3 {[%clk 0:02:17.8]} 13... Qxd3 {[%clk 0:02:27.7]}
14. cxd3 {[%clk 0:02:06.4]} 14... e6 {[%clk 0:02:12.4]} 15. Be3 {[%clk
0:02:04.7]} 15... Nf5 {[%clk 0:02:12.2]} 16. Bf2 {[%clk 0:02:02]} 16... a6
{[%clk 0:02:12]} 17. Nge2 {[%clk 0:02:00.9]} 17... h5 {[%clk 0:02:10.8]} 18. a3
{[%clk 0:02:00.2]} 18... g6 {[%clk 0:02:04.9]} 19. Ne4 {[%clk 0:01:56.6]} 19...
Bg7 {[%clk 0:01:59.9]} 20. Ng5 {[%clk 0:01:55.5]} 20... Rhf8 {[%clk 0:01:58.7]}
21. d4 {[%clk 0:01:49.5]} 21... Bh6 {[%clk 0:01:38.6]} 22. Ne4 {[%clk
0:01:45.6]} 22... Nxe4 {[%clk 0:01:38.5]} 23. fxe4 {[%clk 0:01:45.6]} 23... Ne3
{[%clk 0:01:38.9]} 24. Bxe3 {[%clk 0:01:44.6]} 24... Bxe3 {[%clk 0:01:38.3]} 25.
Rd3 {[%clk 0:01:44.2]} 25... Bh6 {[%clk 0:01:36.7]} 26. Rf1 {[%clk 0:01:42.6]}
26... f5 {[%clk 0:01:36.7]} 27. Rdf3 {[%clk 0:01:39.5]} 27... Bg7 {[%clk
0:01:33.4]} 28. d5 {[%clk 0:01:38.5]} 28... fxe4 {[%clk 0:01:24]} 29. Rxf8
{[%clk 0:01:37.5]} 29... Rxf8 {[%clk 0:01:23.3]} 30. Rxf8+ {[%clk 0:01:35.3]}
30... Bxf8 {[%clk 0:01:22.9]} 31. dxe6 {[%clk 0:01:32.3]} 31... Kd8 {[%clk
0:01:23]} 32. Nc3 {[%clk 0:01:31.3]} 32... e3 {[%clk 0:01:20.8]} 33. Kc2 {[%clk
0:01:29.6]} 33... Ke7 {[%clk 0:01:18]} 34. Nd5+ {[%clk 0:01:28.5]} 34... Kxe6
{[%clk 0:01:16.8]} 35. Nxc7+ {[%clk 0:01:28.7]} 35... Ke5 {[%clk 0:01:16]} 36.
Kd3 {[%clk 0:01:25.6]} 36... Bh6 {[%clk 0:01:05.2]} 37. Nd5 {[%clk 0:01:24.2]}
37... e2 {[%clk 0:01:00.9]} 38. Kxe2 {[%clk 0:01:21.7]} 38... Kd4 {[%clk
0:01:01.5]} 39. b3 {[%clk 0:01:19.2]} 39... b5 {[%clk 0:01:01.3]} 40. Nc7 {[%clk
0:01:13.3]} 40... bxc4 {[%clk 0:01:00.6]} 41. bxc4 {[%clk 0:01:13.3]} 41... a5
{[%clk 0:01:00.5]} 42. Nd5 {[%clk 0:00:52.8]} 42... Kxc4 {[%clk 0:00:57.4]} 43.
Ne7 {[%clk 0:00:53.3]} 43... g5 {[%clk 0:00:52.5]} 44. Nc6 {[%clk 0:00:51]}
44... a4 {[%clk 0:00:49.6]} 45. Kd2 {[%clk 0:00:40.8]} 45... Bf8 {[%clk
0:00:44.7]} 46. Kc2 {[%clk 0:00:37.1]} 46... Bxa3 {[%clk 0:00:42.4]} 47. Ne5+
{[%clk 0:00:37.8]} 47... Kd5 {[%clk 0:00:38.5]} 48. Nf3 {[%clk 0:00:29.5]} 48...
Be7 {[%clk 0:00:37.5]} 49. Nd2 {[%clk 0:00:27.7]} 49... Kd4 {[%clk 0:00:35.8]}
50. Nf1 {[%clk 0:00:26.3]} 50... Bd6 {[%clk 0:00:32.5]} 51. Nd2 {[%clk
0:00:19.2]} 51... g4 {[%clk 0:00:30.5]} 52. h3 {[%clk 0:00:18.1]} 52... g3
{[%clk 0:00:23.7]} 53. Nf1 {[%clk 0:00:14.7]} 53... h4 {[%clk 0:00:20.5]} 54.
Nd2 {[%clk 0:00:14.2]} 54... Be7 {[%clk 0:00:17.1]} 55. Nf1 {[%clk 0:00:11.1]}
55... Bg5 {[%clk 0:00:17.1]} 56. Kd1 {[%clk 0:00:06.5]} 56... a3 {[%clk
0:00:16.4]} 57. Kc2 {[%clk 0:00:06.3]} 57... a2 {[%clk 0:00:16.3]} 58. Kb2
{[%clk 0:00:06.8]} 58... Kd3 {[%clk 0:00:16.9]} 59. Kxa2 {[%clk 0:00:07.1]}
59... Ke2 {[%clk 0:00:17.6]} 60. Nxg3+ {[%clk 0:00:07.6]} 60... hxg3 {[%clk
0:00:18]} 61. Kb2 {[%clk 0:00:08.5]} 61... Kf2 {[%clk 0:00:18.3]} 62. h4 {[%clk
0:00:07.8]} 62... Bxh4 {[%clk 0:00:18.1]} 63. Kc2 {[%clk 0:00:08.4]} 63... Kxg2
{[%clk 0:00:18.7]} 64. Kd2 {[%clk 0:00:09.3]} 64... Kh1 {[%clk 0:00:19]} 65. Ke2
{[%clk 0:00:10.2]} 65... g2 {[%clk 0:00:19.7]} 66. Kf3 {[%clk 0:00:10.3]} 66...
g1=Q {[%clk 0:00:19.9]} 67. Kf4 {[%clk 0:00:10.9]} 67... Qg5+ {[%clk 0:00:18.7]}
68. Kf3 {[%clk 0:00:10.6]} 68... Qf5+ {[%clk 0:00:18.6]} 69. Ke2 {[%clk
0:00:10]} 69... Kg2 {[%clk 0:00:15.5]} 70. Kd2 {[%clk 0:00:09.8]} 70... Qf3
{[%clk 0:00:14.8]} 71. Kc2 {[%clk 0:00:09.4]} 71... Kg3 {[%clk 0:00:15.7]} 72.
Kd2 {[%clk 0:00:09.4]} 72... Kf4 {[%clk 0:00:15.9]} 73. Kc2 {[%clk 0:00:09.5]}
73... Ke4 {[%clk 0:00:16.5]} 74. Kd2 {[%clk 0:00:10]} 74... Kd4 {[%clk
0:00:16.5]} 75. Kc2 {[%clk 0:00:10.1]} 75... Qc3+ {[%clk 0:00:15.9]} 76. Kd1
{[%clk 0:00:08.9]} 76... Qc4 {[%clk 0:00:12.4]} 77. Kd2 {[%clk 0:00:08.7]} 77...
Bd8 {[%clk 0:00:12.8]} 78. Kd1 {[%clk 0:00:08.1]} 78... Qa2 {[%clk 0:00:12.5]}
79. Ke1 {[%clk 0:00:08.1]} 79... Ke3 {[%clk 0:00:12.4]} 0-1